bitfinex-derivatives/quotes_ETHF0:USTF0_20240920
["timestamp","ask_amount","ask_price","bid_price","bid_amount"]
[1726820125277,0.39159,2553.3,2553.0,3.45163]
[1726820125869,3.59937,2553.4,2553.0,3.45163]
[1726820126374,0.39159,2553.3,2553.0,3.06]
[1726820127275,0.39159,2553.3,2553.0,3.45163]
[1726820127572,3.59938,2553.4,2553.0,3.45163]
[1726820127774,3.59938,2553.4,2553.1,0.39162]
[1726820127973,3.59938,2553.4,2553.2,3.06]
[1726820129265,0.39158,2553.4,2553.2,3.06]
[1726820129672,0.39159,2553.3,2553.2,3.06]
[1726820129881,0.39158,2553.4,2553.2,3.06]
[1726820130067,3.9898,2553.5,2553.2,3.06]
[1726820130368,3.9898,2553.5,2553.0,0.39163]
[1726820130369,0.39159,2553.3,2553.0,3.45163]
[1726820130573,3.9898,2553.5,2553.0,3.45163]
[1726820130574,0.39158,2553.4,2553.1,0.39161]
[1726820130769,0.39158,2553.4,2553.0,3.45162]
[1726820131170,0.39158,2553.4,2553.1,0.39162]
[1726820131377,0.39159,2553.3,2553.0,3.45162]
[1726820133373,0.39158,2553.4,2553.1,0.39162]
[1726820133784,0.39159,2553.3,2553.1,0.4025]
[1726820133981,0.39158,2553.4,2553.1,0.79411]
[1726820135484,4.38136,2553.5,2553.2,0.39159]
[1726820135776,3.2078,2553.5,2553.4,3.45157]
[1726820135974,0.39153,2553.7,2553.4,3.45157]
[1726820136172,3.2078,2553.5,2553.4,3.06]
[1726820136474,0.39158,2553.4,2553.2,3.06]
[1726820136673,0.39158,2553.4,2553.2,3.4516]
[1726820136877,0.39157,2553.4,2553.2,3.45159]
[1726820137185,0.39158,2553.4,2553.2,3.4516]
[1726820138483,3.2078,2553.5,2553.3,0.39158]
[1726820138672,3.59937,2553.5,2553.2,3.4516]
[1726820138985,3.59937,2553.5,2553.2,3.45159]
[1726820138986,3.59936,2553.5,2553.2,3.45159]
[1726820139484,3.2078,2553.5,2553.2,3.06]
[1726820139671,3.2078,2553.5,2553.4,3.45157]
[1726820139984,3.2078,2553.5,2553.4,3.06]
[1726820140178,3.2078,2553.5,2553.4,3.45157]
[1726820140380,3.2078,2553.5,2553.4,3.06]
[1726820140675,3.2078,2553.5,2553.1,0.4025]
[1726820140676,0.39159,2553.3,2553.1,0.4025]
[1726820141080,0.39159,2553.3,2553.1,0.79412]
[1726820141285,0.39158,2553.4,2553.1,0.79412]
[1726820142081,0.39158,2553.4,2553.2,0.3916]
[1726820142283,0.39158,2553.4,2553.1,0.79411]
[1726820143179,0.39159,2553.3,2553.1,0.79411]
[1726820143682,0.39158,2553.4,2553.1,0.79411]
[1726820144189,0.39157,2553.4,2553.2,0.3916]
[1726820144478,3.59936,2553.5,2553.2,3.4516]
[1726820144978,0.39157,2553.4,2553.2,3.4516]
[1726820145677,0.39156,2553.5,2553.2,3.45159]
[1726820146080,3.2078,2553.4,2553.2,3.45159]
[1726820146280,0.39155,2553.6,2553.3,0.39158]
[1726820146479,0.7892,2553.8,2553.4,3.45157]
[1726820146688,3.2078,2553.5,2553.4,3.45157]
[1726820147772,0.39154,2553.6,2553.4,3.45157]
[1726820148180,3.2078,2553.5,2553.4,3.45157]
[1726820148582,0.39154,2553.6,2553.4,3.45157]
[1726820148782,3.2078,2553.5,2553.4,3.45157]
[1726820149079,0.39154,2553.6,2553.4,3.45157]
[1726820149475,3.2078,2553.5,2553.4,3.45157]
[1726820149675,0.39154,2553.6,2553.4,3.45157]
[1726820150094,0.39153,2553.7,2553.5,0.39156]
[1726820150387,0.39153,2553.7,2553.6,0.3855]
[1726820150883,3.2078,2554.1,2553.6,3.4455]
[1726820151087,3.2078,2554.1,2553.9,3.45149]
[1726820151088,3.59927,2554.1,2553.9,3.45149]
[1726820151287,0.39148,2554.0,2553.9,3.06]
[1726820152183,3.59927,2554.1,2553.9,3.06]
[1726820152390,3.2078,2554.1,2553.9,3.06]
[1726820152595,3.2078,2554.1,2553.9,3.45149]
[1726820152889,3.59927,2554.1,2553.9,3.06]
[1726820153290,3.59927,2554.1,2553.9,3.45149]
[1726820153682,3.59927,2554.1,2553.9,3.06]
[1726820154195,3.59927,2554.1,2553.9,3.4507]
[1726820154485,3.9152,2554.0,2553.6,3.4455]
[1726820154686,3.2078,2554.1,2553.6,3.4455]
[1726820155092,3.59931,2553.8,2553.6,3.4455]
[1726820155384,3.59931,2553.8,2553.6,3.83704]
[1726820155385,3.2078,2553.8,2553.6,3.83704]
[1726820155575,3.2078,2553.8,2553.7,0.39152]
[1726820155981,3.2078,2553.8,2553.7,4.30752]
[1726820156286,0.39149,2554.0,2553.7,4.30752]
[1726820156488,0.39149,2554.0,2553.9,3.06]
[1726820156789,0.39148,2554.0,2553.9,3.06]
[1726820157989,3.2078,2554.1,2553.9,3.06]
[1726820158188,3.59927,2554.1,2553.9,3.06]
[1726820158495,0.39148,2554.0,2553.9,3.4687]
[1726820158682,3.2078,2554.1,2553.9,3.4687]
[1726820158883,3.2078,2554.1,2553.9,3.86019]
[1726820159087,3.2078,2554.1,2554.0,0.39148]
[1726820159291,3.59927,2554.1,2554.0,3.06]
[1726820159591,0.39148,2554.0,2553.9,3.4687]
[1726820159790,3.2078,2554.1,2553.9,3.4687]
[1726820159990,0.39148,2554.0,2553.9,3.4687]
[1726820160685,3.59927,2554.1,2553.9,3.4687]
[1726820161204,3.2078,2554.1,2553.9,3.86019]
[1726820161398,3.59927,2554.1,2553.9,3.86019]
[1726820161582,3.59927,2554.1,2553.9,3.4687]
[1726820161787,3.59927,2554.1,2553.9,3.86019]
[1726820161983,0.39148,2554.0,2553.9,3.4687]
[1726820163790,0.39151,2553.8,2553.7,0.4027]
[1726820164287,0.39152,2553.7,2553.6,0.3855]
[1726820164487,4.89482,2553.7,2553.3,1.02577014]
[1726820164690,0.39156,2553.5,2553.2,1.41737014]
[1726820165690,0.39155,2553.6,2553.2,1.41737014]
[1726820165890,3.2078,2553.8,2553.2,1.41737014]
[1726820166590,0.39155,2553.6,2553.2,1.41737014]
[1726820167290,0.39155,2553.6,2553.3,3.06]
[1726820169786,0.39156,2553.5,2553.3,3.06]
[1726820170691,3.59936,2553.5,2553.3,3.06]
[1726820171092,0.39159,2553.3,2553.1,4.87767014]
[1726820171992,1.17958,2553.4,2553.1,5.26929014]
[1726820172686,1.17958,2553.4,2553.1,4.24352]
[1726820172995,1.17958,2553.4,2553.1,5.26929014]
[1726820174196,1.17958,2553.4,2553.1,4.24352]
[1726820174389,0.39158,2553.4,2553.3,3.06]
[1726820174596,3.2078,2553.5,2553.3,3.06]
[1726820174597,3.59936,2553.5,2553.3,3.06]
[1726820175687,0.39157,2553.4,2553.3,3.06]
[1726820177984,0.39157,2553.4,2553.3,1.41]
[1726820179283,0.78887,2553.4,2553.3,1.41]
[1726820181285,3.2078,2553.5,2553.3,1.41]
[1726820181493,3.2078,2553.5,2553.4,1.7941]
[1726820181799,3.59936,2553.5,2553.4,1.7941]
[1726820181998,0.39156,2553.5,2553.4,1.7941]
[1726820182298,3.2078,2553.5,2553.4,1.7941]
[1726820182688,3.59936,2553.5,2553.4,1.7941]
[1726820183894,3.2078,2553.5,2553.4,1.7941]
[1726820184286,3.59936,2553.5,2553.4,1.7941]
[1726820184492,3.59936,2553.5,2553.4,1.41]
[1726820186288,0.39155,2553.6,2553.4,1.41]
[1726820186488,0.39155,2553.6,2553.5,1.8]
[1726820189099,0.39155,2553.6,2553.5,0.39]
[1726820190502,0.39155,2553.6,2553.1,1.41497014]
[1726820190503,0.3916,2553.2,2553.1,1.41497014]
[1726820190699,0.3916,2553.2,2552.8,0.7998]
[1726820190700,0.39165,2552.9,2552.8,0.7998]
[1726820190895,3.2078,2552.9,2552.8,0.7998]
[1726820191092,3.59945,2552.9,2552.8,0.7998]
[1726820191291,3.2078,2552.9,2552.8,0.7998]
[1726820192293,0.39164,2553.0,2552.8,0.7998]
[1726820192597,0.39164,2553.0,2552.7,2.20498]
[1726820192598,3.2078,2552.9,2552.7,0.4033]
[1726820192798,0.39166,2552.8,2552.7,1.8133]
[1726820193597,3.59946,2552.9,2552.7,1.8133]
[1726820193798,3.59946,2552.9,2552.8,1.41]
[1726820198096,0.39166,2552.8,2552.7,1.8133]
[1726820199200,3.59946,2552.9,2552.7,1.8133]
[1726820199910,0.39166,2552.8,2552.7,1.8133]
[1726820200412,3.59945,2552.9,2552.7,1.8133]
[1726820200808,0.39166,2552.8,2552.7,1.8133]
[1726820204418,0.39165,2552.9,2552.7,1.8133]
[1726820204602,3.59945,2552.9,2552.7,1.8133]
[1726820205115,0.39166,2552.8,2552.7,1.8133]
[1726820206405,3.2078,2552.9,2552.7,1.8133]
[1726820206406,3.59945,2552.9,2552.7,1.8133]
[1726820206612,3.59945,2552.9,2552.8,1.41]
[1726820209413,0.39166,2552.8,2552.7,1.8133]
[1726820217913,3.59946,2552.9,2552.7,1.8133]
[1726820218220,0.39166,2552.8,2552.7,0.4033]
[1726820218419,3.59946,2552.9,2552.7,0.4033]
[1726820218619,0.39166,2552.8,2552.7,0.4033]
[1726820220413,3.2078,2552.9,2552.7,0.79498]
[1726820220414,3.59945,2552.9,2552.7,0.79498]
[1726820220616,3.59946,2552.9,2552.8,1.41]
[1726820222926,3.2078,2553.5,2553.4,0.39157]
[1726820223226,0.3915,2553.9,2553.6,0.39154]
[1726820223422,3.5966,2554.0,2553.8,1.41]
[1726820223629,3.98809,2554.0,2553.8,1.41]
[1726820224316,3.98809,2554.0,2553.5,0.7852]
[1726820224317,5.3252,2553.9,2553.5,0.7852]
[1726820224510,3.2078,2553.7,2553.5,2.6074]
[1726820224715,3.2078,2553.7,2553.6,1.41]
[1726820224911,0.39152,2553.8,2553.6,1.41]
[1726820225617,3.5966,2554.0,2553.6,1.41]
[1726820225819,0.39149,2553.9,2553.8,1.41]
[1726820226224,0.39151,2553.8,2553.6,1.41]
[1726820227026,3.5966,2554.0,2553.6,1.41]
[1726820227218,0.3915,2553.9,2553.7,1.41]
[1726820228721,0.39151,2553.8,2553.7,1.41]
[1726820228922,3.5966,2554.0,2553.5,1.58895]
[1726820228923,3.5966,2554.0,2553.5,1.1974]
[1726820229115,0.39152,2553.8,2553.5,2.99895]
[1726820230920,0.3915,2553.9,2553.5,2.6074]
[1726820231325,0.3915,2553.9,2553.6,0.39154]
[1726820231525,0.39151,2553.8,2553.5,2.99895]
[1726820231724,0.39154,2553.6,2553.5,0.388]
[1726820232022,3.2078,2553.7,2553.0,1.53865521]
[1726820232023,0.39157,2553.5,2553.3,1.41]
[1726820232212,0.39157,2553.5,2553.3,1.8103]
[1726820232624,3.2078,2553.4,2553.3,1.8103]
[1726820234719,7.51617,2553.4,2553.1,0.76581]
[1726820234917,3.59938,2553.4,2553.3,1.41]
[1726820235123,3.2078,2553.4,2553.3,1.41]
[1726820235324,7.1246,2553.4,2553.3,1.41]
[1726820235724,7.51617,2553.4,2553.3,1.41]
[1726820236822,7.1246,2553.4,2553.3,1.41]
[1726820237124,7.51617,2553.4,2553.3,1.41]
[1726820238532,7.51617,2553.4,2553.1,0.7632]
[1726820238533,0.39159,2553.3,2553.1,1.41]
[1726820239429,0.39162,2553.1,2553.0,1.41]
[1726820239729,3.2078,2553.1,2552.9,0.7831]
[1726820239938,7.51623,2553.1,2552.8,1.41]
[1726820240129,3.59943,2553.1,2552.8,1.41]
[1726820240329,0.39164,2553.0,2552.8,1.41]
[1726820240627,3.59943,2553.1,2552.8,1.41]
[1726820240930,3.2078,2553.1,2553.0,1.41]
[1726820241331,7.1246,2553.1,2552.6,1.80811084]
[1726820241530,0.39165,2552.9,2552.8,1.41]
[1726820242428,0.39165,2552.9,2552.6,1.17479]
[1726820242429,3.9168,2552.9,2552.4,5.22301084]
[1726820242633,0.4019,2552.8,2552.6,1.80169]
[1726820243035,4.3195,2552.8,2552.6,1.41]
[1726820243229,4.3195,2552.8,2552.6,1.80169]
[1726820243928,0.4089,2552.7,2552.6,1.80169]
[1726820244123,3.6167,2552.7,2552.6,1.80169]
[1726820244434,7.5343,2552.7,2552.6,1.41]
[1726820245735,3.2078,2552.7,2552.6,1.80169]
[1726820246231,0.39162,2553.1,2552.7,0.39167]
[1726820246431,0.39162,2553.1,2553.0,1.41]
[1726820246823,4.30842,2553.1,2553.0,1.41]
[1726820247839,0.39162,2553.1,2553.0,1.41]
[1726820249030,4.30842,2553.1,2552.8,0.4089]
[1726820249236,4.30842,2553.1,2553.0,1.41]
[1726820249237,0.39162,2553.1,2553.0,1.41]
[1726820249438,0.3897,2553.2,2553.0,1.41]
[1726820249635,4.30842,2553.1,2553.0,1.41]
[1726820249832,0.39162,2553.1,2553.0,1.41]
[1726820250035,4.71062,2553.1,2553.0,1.41]
[1726820250739,10.71062,2553.1,2553.0,1.41]
[1726820251442,10.71062,2553.1,2552.8,1.41]
[1726820251443,0.39165,2552.9,2552.8,1.41]
[1726820251628,3.59945,2552.9,2552.8,1.41]
[1726820251831,7.51625,2552.9,2552.8,1.41]
[1726820252527,7.51625,2552.9,2552.6,0.80279]
[1726820252528,0.39167,2552.8,2552.7,1.41]
[1726820252730,1.17087,2552.8,2552.7,1.41]
[1726820252940,5.08847,2552.8,2552.7,1.41]
[1726820253946,5.08846,2552.8,2552.7,1.41]
[1726820254237,4.6968,2552.8,2552.7,1.41]
[1726820254442,4.69816,2552.8,2552.7,1.41]
[1726820254743,3.9176,2552.8,2552.7,1.41]
[1726820254931,4.30926,2552.8,2552.7,1.41]
[1726820255134,3.9176,2552.8,2552.7,1.41]
[1726820255849,3.59945,2552.9,2552.7,1.41]
[1726820256036,7.51705,2552.9,2552.8,1.7899]
[1726820259835,3.2078,2552.9,2552.8,1.7899]
[1726820260149,0.39162,2553.1,2552.8,2.59295]
[1726820260347,3.2078,2553.2,2553.0,1.41]
[1726820260348,3.59941,2553.2,2553.0,1.41]
[1726820260642,3.5994,2553.2,2553.1,0.4115]
[1726820261037,7.5162,2553.2,2553.1,0.4115]
[1726820261639,13.1246,2553.2,2552.8,2.2013]
[1726820261842,3.59945,2552.9,2552.8,1.7899]
[1726820262347,7.51625,2552.9,2552.8,1.7899]
[1726820264037,13.51625,2552.9,2552.8,1.41]
[1726820264244,7.51625,2552.9,2552.8,1.41]
[1726820264846,3.59945,2552.9,2552.8,1.41]
[1726820272351,3.2078,2552.9,2552.8,1.41]
[1726820272749,3.59945,2552.9,2552.8,1.41]
[1726820275662,3.59945,2552.9,2552.1,1.02501084]
[1726820275663,0.97916,2552.8,2552.1,1.02501084]
[1726820275858,3.59952,2552.5,2552.2,1.1555]
[1726820276556,0.39173,2552.4,2552.2,1.1555]
[1726820279154,0.39175,2552.3,2551.8,1.02501084]
[1726820279358,0.39175,2552.3,2552.0,2.2021]
[1726820279754,4.6178,2552.5,2552.0,2.2021]
[1726820279755,3.2078,2552.2,2552.0,2.2021]
[1726820281956,3.2078,2552.2,2552.0,0.7921]
[1726820281957,0.39177,2552.1,2552.0,0.7921]
[1726820282270,3.59956,2552.2,2552.0,0.7921]
[1726820283152,0.39177,2552.1,2552.0,0.7921]
[1726820283570,3.59956,2552.2,2552.0,0.7921]
[1726820283869,0.39177,2552.1,2552.0,0.7921]
[1726820284757,1.80177,2552.1,2552.0,0.3792]
[1726820284956,1.80177,2552.1,2551.4,5.22301084]
[1726820284957,5.3284,2552.1,2551.4,5.22301084]
[1726820285164,1.80185,2551.6,2551.5,0.3961]
[1726820286657,5.72105,2551.6,2551.5,0.3961]
[1726820286864,0.39187,2551.5,2551.3,0.3731]
[1726820287157,5.00968,2551.4,2551.2,0.7871]
[1726820287465,5.42298,2551.4,2551.2,0.7871]
[1726820287964,3.6211,2551.4,2551.2,0.7871]
[1726820288165,0.39189,2551.3,2551.2,0.7871]
[1726820289258,0.39191,2551.2,2550.9,0.3812]
[1726820289464,3.2078,2551.1,2550.9,0.3812]
[1726820291090,3.59972,2551.1,2550.9,0.3812]
[1726820291373,0.39194,2551.0,2550.9,0.3812]
[1726820291868,0.39195,2550.9,2550.8,0.8161]
[1726820292859,1.17245,2551.0,2550.8,0.8161]
[1726820293065,0.39195,2550.9,2550.8,0.8161]
[1726820293570,0.39195,2551.0,2550.8,0.8161]
[1726820293868,3.2078,2551.1,2550.8,0.8161]
[1726820294075,0.39195,2551.0,2550.8,0.8161]
[1726820294460,3.2078,2551.1,2550.8,0.8161]
[1726820294662,3.2078,2551.1,2550.9,3.06]
[1726820294860,3.2078,2551.1,2551.0,0.77184]
[1726820295062,3.59961,2551.9,2551.0,4.2999]
[1726820295365,3.2078,2551.9,2551.4,3.06]
[1726820295559,3.2078,2551.9,2551.5,1.1715]
[1726820295560,0.39182,2551.8,2551.5,1.1715]
[1726820295764,0.39183,2551.7,2551.5,1.1715]
[1726820296169,3.59965,2551.6,2551.5,1.1715]
[1726820296472,3.59965,2551.6,2551.5,0.7916]
[1726820297270,3.2078,2551.6,2551.2,0.3916]
[1726820297573,3.06,2551.5,2551.2,0.8133]
[1726820297765,3.59969,2551.3,2551.2,0.8133]
[1726820300972,0.39179,2552.0,2551.2,13.7933]
[1726820301164,3.59956,2552.2,2551.7,0.39182]
[1726820301369,3.2078,2552.2,2551.8,3.45181]
[1726820301863,0.39178,2552.1,2551.8,3.06]
[1726820302063,3.2078,2552.2,2551.9,0.3918]
[1726820302270,3.59956,2552.2,2551.9,0.3918]
[1726820302472,0.3918,2552.0,2551.7,0.39183]
[1726820302872,0.3918,2551.9,2551.6,3.45184]
[1726820303175,3.2078,2552.2,2551.7,0.39183]
[1726820303371,0.39179,2552.0,2551.7,0.39183]
[1726820303672,3.2078,2552.2,2551.7,0.39183]
[1726820303878,0.39178,2552.1,2551.8,0.3918]
[1726820304084,0.39178,2552.1,2551.8,0.39181]
[1726820304377,0.39178,2552.1,2551.7,0.7953]
[1726820304573,3.2078,2552.2,2551.7,0.7953]
[1726820304574,3.59956,2552.2,2551.8,3.06]
[1726820304881,3.59956,2552.2,2551.9,0.3937]
[1726820304882,0.39177,2552.1,2551.9,0.3937]
[1726820305579,3.2078,2552.2,2551.9,0.3937]
[1726820305777,0.3937,2552.4,2552.0,3.06]
[1726820305966,0.39171,2552.5,2552.3,3.06]
[1726820306169,0.39171,2552.5,2552.4,0.4095]
[1726820307578,0.39171,2552.5,2552.2,0.78005]
[1726820307880,0.39177,2552.2,2552.0,0.4095]
[1726820308678,0.39177,2552.1,2551.7,3.06]
[1726820308880,0.80067,2552.1,2551.8,0.39182]
[1726820309076,0.80068,2552.1,2551.7,3.86532]
[1726820309278,0.4089,2552.1,2551.8,0.39181]
[1726820309473,0.4024,2552.4,2551.9,3.06]
[1726820309684,1.20303,2552.4,2552.0,0.39179]
[1726820310189,0.39176,2552.2,2551.8,0.39181]
[1726820310370,0.39176,2552.2,2551.8,0.3918]
[1726820310675,0.39176,2552.2,2551.9,0.3918]
[1726820312675,1.20304,2552.4,2552.1,0.39176]
[1726820312880,0.39175,2552.3,2552.0,0.39177]
[1726820313083,0.39176,2552.2,2552.0,0.39177]
[1726820313382,0.39175,2552.3,2552.1,0.39177]
[1726820314090,0.39175,2552.3,2552.0,0.39178]
[1726820314381,0.39175,2552.3,2552.1,0.39177]
[1726820314581,0.39175,2552.3,2552.0,0.39178]
[1726820315286,0.8113,2552.4,2552.0,0.39178]
[1726820315473,0.39175,2552.3,2552.0,0.39178]
[1726820316177,0.8113,2552.4,2551.7,3.4735]
[1726820316377,0.3735,2552.2,2551.7,3.86532]
[1726820316685,0.3735,2552.2,2551.8,0.39181]
[1726820316686,0.39177,2552.1,2551.8,0.39181]
[1726820317378,0.39179,2552.0,2551.8,0.39181]
[1726820317578,0.39178,2552.1,2551.8,0.39181]
[1726820317973,0.39178,2552.1,2551.8,0.3918]
[1726820318571,3.2078,2552.3,2551.9,3.06]
[1726820318781,3.59955,2552.3,2552.0,0.39178]
[1726820318979,0.39175,2552.3,2552.0,0.39178]
[1726820319378,0.39175,2552.3,2551.9,3.06]
[1726820319578,0.39175,2552.3,2552.0,0.39177]
[1726820320591,0.39175,2552.3,2552.1,0.39177]
[1726820320888,0.39175,2552.3,2552.0,0.39178]
[1726820321079,0.8113,2552.4,2552.1,3.06]
[1726820321280,3.6071,2552.6,2552.1,3.06]
[1726820321478,0.39173,2552.4,2552.2,0.3782]
[1726820321678,0.39173,2552.4,2552.2,0.76995]
[1726820321879,3.6071,2552.6,2552.4,0.39172]
[1726820322085,3.6071,2552.6,2552.4,0.39171]
[1726820322286,3.9988,2552.6,2552.4,0.4084]
[1726820322476,3.9988,2552.6,2552.2,0.3782]
[1726820322477,0.39171,2552.5,2552.2,0.76994]
[1726820323685,0.3836,2552.4,2552.2,0.76994]
[1726820323989,0.3836,2552.4,2552.3,0.39174]
[1726820324184,0.3836,2552.4,2552.2,0.76995]
[1726820326491,0.77533,2552.4,2552.2,0.76995]
[1726820326888,0.39174,2552.3,2552.0,0.80018]
[1726820327194,0.79846,2552.2,2552.0,0.80018]
[1726820327390,0.4067,2552.2,2552.0,0.80018]
[1726820327895,0.4067,2552.2,2551.7,3.8476]
[1726820328086,0.4067,2552.2,2551.5,7.78781084]
[1726820328087,3.5903,2552.1,2551.6,0.39184]
[1726820328393,0.39179,2552.0,2551.7,0.39183]
[1726820328595,0.80039,2552.0,2551.7,0.39183]
[1726820329281,0.4086,2552.0,2551.8,0.3918]
[1726820330190,0.80039,2552.0,2551.8,0.3918]
[1726820330393,0.80039,2552.0,2551.7,3.45182]
[1726820331586,0.39181,2551.9,2551.6,0.39184]
[1726820332187,0.8004,2552.0,2551.7,0.39183]
[1726820332594,0.80039,2552.0,2551.7,0.39183]
[1726820333691,0.80039,2552.0,2551.6,0.39184]
[1726820333891,0.3918,2551.9,2551.6,0.39184]
[1726820334098,0.80039,2552.0,2551.6,0.39184]
[1726820334291,0.3918,2551.9,2551.6,0.39184]
[1726820334492,0.80039,2552.0,2551.6,0.39184]
[1726820334801,0.3918,2551.9,2551.6,0.39184]
[1726820334999,0.3918,2551.9,2551.5,7.04815]
[1726820335297,0.3918,2551.9,2551.6,0.39184]
[1726820335600,0.3918,2551.9,2551.6,0.39185]
[1726820335794,0.3918,2551.9,2551.5,7.04815]
[1726820336095,3.5996,2551.9,2551.6,0.39184]
[1726820337899,3.2078,2551.9,2551.6,0.39184]
[1726820338298,0.4086,2552.0,2551.5,6.6563]
[1726820338597,3.2078,2552.2,2551.9,3.06]
[1726820338802,1.95761,2553.8,2552.5,0.39171]
[1726820338803,0.3816,2552.6,2552.5,0.39171]
[1726820339100,0.3816,2552.6,2552.5,3.06]
[1726820339284,0.3816,2552.6,2552.5,3.45171]
[1726820339695,0.3816,2552.6,2552.5,3.06]
[1726820339996,0.39172,2552.5,2552.3,3.06]
[1726820340196,0.39172,2552.5,2552.0,0.4047]
[1726820340197,3.988,2552.5,2552.0,0.4047]
[1726820340492,0.9794,2552.2,2551.8,1.02501084]
[1726820340703,0.39181,2551.9,2551.6,1.41685084]
[1726820340890,0.39181,2551.9,2551.6,0.39184]
[1726820341600,1.2002,2552.0,2551.6,0.39185]
[1726820341894,0.3971,2552.0,2551.7,3.06]
[1726820342087,0.3971,2552.0,2551.9,3.4518]
[1726820342598,0.4029,2552.1,2552.0,0.39179]
[1726820342996,1.21045,2552.3,2552.0,3.4553]
[1726820342997,0.4074,2552.3,2552.0,3.4553]
[1726820343294,0.4074,2552.3,2552.1,0.39177]
[1726820343490,0.4074,2552.3,2552.2,0.39176]
[1726820343700,0.4074,2552.3,2552.1,0.79876]
[1726820343891,0.79915,2552.3,2552.1,0.79876]
[1726820344089,0.79915,2552.3,2552.1,0.39177]
[1726820344287,0.4074,2552.3,2552.1,0.39177]
[1726820344795,0.4074,2552.3,2552.1,0.39176]
[1726820345588,0.4074,2552.3,2552.2,0.39176]
[1726820350899,0.79914,2552.3,2552.1,1.41677084]
[1726820351094,0.79914,2552.3,2552.1,0.39176]
[1726820351902,0.4074,2552.3,2552.1,0.39176]
[1726820352400,0.4074,2552.3,2552.0,4.48031084]
[1726820352401,0.4074,2552.3,2552.2,0.39176]
[1726820354498,0.39172,2552.5,2552.3,0.39174]
[1726820354710,0.39172,2552.5,2552.3,0.78134]
[1726820355010,1.5984,2552.6,2552.4,0.39172]
[1726820355304,0.39172,2552.5,2552.3,0.78134]
[1726820357412,0.39172,2552.5,2552.3,1.80635084]
[1726820357711,0.39172,2552.5,2552.3,0.78134]
[1726820359402,0.39174,2552.3,2552.1,1.02501084]
[1726820359608,3.83286,2552.2,2552.1,1.02501084]
[1726820359906,0.39178,2552.1,2551.8,1.41501084]
[1726820360102,0.39179,2552.0,2551.8,1.41501084]
[1726820360709,0.39179,2552.0,2551.8,0.39]
[1726820362213,0.39179,2552.0,2551.8,1.41501084]
[1726820362405,0.3958,2552.1,2551.8,4.47501084]
[1726820362611,0.3958,2552.1,2551.9,0.3918]
[1726820362811,0.3958,2552.1,2551.9,1.41681084]
[1726820364311,0.8008,2552.1,2551.9,1.41681084]
[1726820365717,0.8008,2552.1,2551.9,1.02501084]
[1726820365904,0.8008,2552.1,2551.9,1.41681084]
[1726820366710,0.8008,2552.1,2551.9,4.08501084]
[1726820366914,3.2078,2552.8,2552.1,0.97943]
[1726820367220,0.3863,2552.7,2552.6,3.45169]
[1726820367521,0.3986,2552.8,2552.6,3.06]
[1726820367708,0.3863,2553.1,2552.8,0.39166]
[1726820367905,1.17652,2553.1,2552.7,0.799]
[1726820368109,0.39163,2553.0,2552.7,1.19067]
[1726820368320,0.39163,2553.0,2552.7,0.799]
[1726820368621,0.39163,2553.0,2552.7,1.19067]
[1726820369017,0.39163,2553.0,2552.7,0.79517]
[1726820369216,0.39168,2552.7,2552.5,1.02601624]
[1726820369420,0.7747,2552.6,2552.5,1.41772624]
[1726820369617,0.7747,2552.6,2552.4,4.48151624]
[1726820369821,1.1664,2552.6,2552.4,1.02601624]
[1726820370016,0.7747,2552.6,2552.3,1.02601624]
[1726820370216,0.39175,2552.3,2552.1,1.40011624]
[1726820370416,0.39172,2552.4,2552.1,1.02601624]
[1726820370612,0.39172,2552.4,2552.0,1.93080436]
[1726820370613,0.39172,2552.4,2552.0,1.41779624]
[1726820370817,0.39173,2552.4,2552.0,1.41779624]
[1726820371918,3.6158,2552.5,2552.0,1.41779624]
[1726820372119,0.39173,2552.4,2552.0,1.41779624]
[1726820373727,3.6158,2552.5,2552.0,1.41779624]
[1726820373728,0.39174,2552.3,2552.0,1.41779624]
[1726820374032,0.39173,2552.4,2552.0,1.41779624]
[1726820374329,0.4112,2552.2,2552.0,1.41779624]
[1726820374531,0.4112,2552.2,2552.0,1.02601624]
[1726820375326,0.4112,2552.2,2552.0,1.41779624]
[1726820375521,3.6158,2552.5,2552.1,1.02601624]
[1726820375722,0.3997,2552.4,2552.1,1.41777624]
[1726820376030,0.3997,2552.4,2552.1,1.02601624]
[1726820376225,0.3997,2552.4,2552.0,1.02601624]
[1726820376528,0.39175,2552.3,2551.9,2.56020624]
[1726820376826,0.3997,2552.4,2551.9,2.16841624]
[1726820377021,0.79143,2552.4,2552.0,0.39178]
[1726820377222,0.39175,2552.3,2551.9,2.56020624]
[1726820378029,0.39175,2552.3,2551.9,1.53419]
[1726820378234,0.39175,2552.3,2552.0,0.39178]
[1726820378724,0.39175,2552.3,2551.9,2.16841624]
[1726820378932,0.3997,2552.4,2551.9,1.77811624]
[1726820379127,0.39176,2552.2,2551.9,2.16990624]
[1726820379433,0.79848,2552.1,2551.9,1.40401624]
[1726820379735,0.4067,2552.1,2551.9,1.02601624]
[1726820379931,0.7768,2552.0,2551.8,1.02601624]
[1726820380129,1.16859,2552.0,2551.8,1.02601624]
[1726820380331,1.16859,2552.0,2551.7,0.39183]
[1726820380633,0.7768,2552.0,2551.7,0.39183]
[1726820381037,0.7768,2552.0,2551.6,2.19211624]